Cogmind - Beta 15 *** ADVENTURER MODE // 2025.09.19 @ 08:08:04 Player: Crusang Result: Destroyed by Y-45 Defender with Beam Rifle Performance ------------- Evolutions (1) 500 Regions Visited (2) 400 Robots Destroyed (26) 130 Value Destroyed (671) 671 Prototype IDs (1) 20 Alien Tech Used (0) 0 Bonus (0) 0 TOTAL SCORE: 1721 Bonus ------- None Cogmind --------- Core Integrity 0/400 Matter 6/300 Energy 100/100 System Corruption 0% Temperature Cool (9) Movement Core (1350) Ox26 Location -9/Materials Parts ------- > --- POWER (1) -------- (None) > --- PROPULSION (4) --- (None) > --- UTILITY (2) ------ Huge Storage Unit Visual Processing Unit > --- WEAPON (2) ------- (None) > --- INVENTORY (25) --- Aluminum Leg Medium Storage Unit Huge Storage Unit Assault Rifle Peak State ------------ > --- POWER ------------ Ion Engine > --- PROPULSION ------- Aluminum Leg Aluminum Leg Aluminum Leg Improved Aluminum Leg > --- UTILITY ---------- Medium Storage Unit Visual Processing Unit > --- WEAPON ----------- Assault Rifle Mini Grenade Launcher > --- INVENTORY -------- Aluminum Leg Huge Storage Unit Assault Rifle [Rating: 12] Favorites ----------- Power Light Ion Engine Engine Light Ion Engine Propulsion Aluminum Leg Leg Aluminum Leg Utility Visual Processing Unit Storage Medium Storage Unit Processor Visual Processing Unit Protection Weapon Shielding Weapon Assault Rifle Ballistic Gun Assault Rifle Launcher Mini Grenade Launcher Build | -11 -10 -9 ------- Run | Yrd Mat Mat Slots Evolved 2 | . . 2 Power . | . . . Propulsion 2 | . . 2 Utility . | . . . Weapon . | . . . Parts Attached 21 | 5 7 9 Power 2 | 1 1 . Engine 2 | 1 1 . Core . | . . . Reactor . | . . . Propulsion 7 | 2 2 3 Treads . | . . . Leg 7 | 2 2 3 Wheel . | . . . Hover . | . . . Flight . | . . . Utility 5 | . 3 2 Device . | . . . Storage 3 | . 1 2 Processor 1 | . 1 . Hackware . | . . . Protection 1 | . 1 . Artifact . | . . . Weapon 7 | 2 1 4 Energy Gun . | . . . Energy Cannon . | . . . Ballistic Gun 5 | 2 1 2 Ballistic Cannon . | . . . Launcher 2 | . . 2 Special Weapon . | . . . Impact Weapon . | . . . Slashing Weapon . | . . . Piercing Weapon . | . . . Special Melee Weapon . | . . . Unidentified Prototypes 1 | . . 1 Parts Lost 7 | . . 7 Power 1 | . . 1 Propulsion 3 | . . 3 Utility . | . . . Weapon 3 | . . 3 Highest Loss Streak 3 | . . 3 To Critical Strikes . | . . . Average Backups 2 | . . 3 Power . | . . . Propulsion . | . . . Utility . | . . 1 Weapon . | . . . Tool/Special . | . . . Unused Backups 3 | 2 1 . Power . | . . . Propulsion 3 | 2 1 . Utility . | . . . Weapon . | . . . Tool/Special . | . . . Average Slot Usage (%) 81 | . 96 71 Engine 8 | . 14 5 Leg 31 | . 28 33 Storage 7 | . 12 3 Processor 8 | . 5 11 Protection 2 | . 6 . Ballistic Gun 16 | . 28 9 Launcher 5 | . . 9 Peak Build Rating 12 | 5 8 12 Average Rating 7 | 3 7 9 On Entrance 4 | . 5 8 Naked Turns . | . . . Heaviest Build 83 | 6 19 83 Greatest Support 43 | 20 20 43 Greatest Overweight (x) 27 | . . 27 Average Overweight (x) . | . . . Largest Inventory Capacity 25 | 5 10 25 Average Capacity 8 | 5 9 7 Most Carried 4 | 4 4 4 Average Carried 2 | . . 3 Final Capacity 25 | 5 10 25 Final Carried 4 | 1 2 4 Class Distribution -------------------- 75% | Mutant 24% | Scavenger-Mutant Dominant Class ---------------- Mutant | -10/Materials Mutant | -9/Materials Resources | -11 -10 -9 ----------- Run | Yrd Mat Mat Matter Collected 395 | 248 106 41 Remotely . | . . . Salvage Created 690 | 33 324 333 Parts 49 | 2 26 21 Haulers Intercepted 2 | . . 2 Recyclers Shooed 2 | . 1 1 Parts Field Recycled . | . . . Retrieved Matter . | . . . Parts Self-Destructed . | . . . Prevented . | . . . Kills | -11 -10 -9 ------- Run | Yrd Mat Mat Combat Hostiles Destroyed 15 | 1 7 7 Guns 9 | 1 7 1 AOE 6 | . . 6 Classes Destroyed 8 | 1 2 5 Worker 2 | . 1 1 Hauler 2 | . . 2 Recycler 1 | . . 1 Mechanic 1 | . . 1 Operator 1 | . . 1 Watcher 4 | . 1 3 Grunt 14 | 1 7 6 Duelist 1 | . . 1 Best Kill Streak 7 | 1 4 7 Combat Bots Only 4 | 1 3 4 Max Kills in Single Turn 4 | 1 1 4 Gunslinging . | . . . Exploded 2 | . . 2 Melee . | . . . Uniques/NPCs Destroyed . | . . . Combat | -11 -10 -9 -------- Run | Yrd Mat Mat Hostile Shots Fired 155 | 1 69 85 Missed 41 | 1 21 19 Hits 114 | . 48 66 Melee 12 | . . 12 Projectile 102 | . 48 54 Critical Strikes 4 | . 1 3 Actively Blocked 1 | . 1 . Damage Taken 1501 | . 405 1096 Core 478 | . 74 404 Absorbed by Shields . | . . . Redirected to Shielding 27 | . 27 . Ignored by Resistances 436 | . 130 306 Core Remaining (%) 85 | 100 70 . Volleys Fired 56 | 1 30 25 Largest 2 | 2 2 2 Hottest 63 | 40 40 63 Shots Fired 97 | 2 60 35 Gun 78 | 2 60 16 Cannon . | . . . Launcher 19 | . . 19 Special . | . . . Kinetic 78 | 2 60 16 Thermal . | . . . Explosive 19 | . . 19 Electromagnetic . | . . . Robot Hit Streak 29 | 2 29 6 Robot Miss Streak 2 | . 2 2 Penetration Max . | . . . Secondary Targets 2 | . 2 . Max Gunslinging Chain 1 | . 1 . Shots Hit Robots 76 | 2 50 24 Core Hits 59 | 4 20 35 Critical Kills 1 | 1 . . Critical Parts Destroyed . | . . . Critical Strikes 1 | 1 . . Destroy 1 | 1 . . Melee Attacks . | . . . Impact . | . . . Slashing . | . . . Piercing . | . . . Sneak Attacks . | . . . Combat Hostiles . | . . . Follow-up Attacks . | . . . Damage Inflicted 1877 | 31 575 1271 Guns 736 | 22 560 154 Cannons . | . . . Explosions 1099 | . . 1099 Melee . | . . . Ramming 42 | 9 15 18 Kinetic 736 | 22 560 154 Thermal . | . . . Explosive 1099 | . . 1099 Electromagnetic . | . . . Impact . | . . . Slashing . | . . . Piercing . | . . . Highest Corruption . | . . . Average Corruption . | . . . Corruption Purged . | . . . Corruption Blocked . | . . . Overload Shots . | . . . Overflow Damage 35 | . . 35 Projectiles . | . . . Explosions 35 | . . 35 Melee . | . . . Knockbacks . | . . . Impact . | . . . Kinetic . | . . . Secondary . | . . . Self-Inflicted Damage 253 | . . 253 Shots 10 | . . 10 Rammed 3 | . . 3 Targets Rammed 22 | 5 5 12 Kicked 19 | 5 5 9 Crushed . | . . . Highest Temperature 28 | . 28 10 Average Temperature 10 | . 11 5 Received Heat Transfer 654 | . 294 360 Siege Activations . | . . . Martial Activations . | . . . Shielding Activations . | . . . Robots Disrupted . | . . . Combat Hostiles . | . . . Robots Corrupted . | . . . Combat Hostiles . | . . . Parts Fried . | . . . Impact Corruptions . | . . . Robots Melted . | . . . Combat Hostiles . | . . . Parts Melted . | . . . Heat Transferred . | . . . Parts Sabotaged . | . . . Parts Stolen . | . . . Parts Stripped . | . . . Power Chain Reactions . | . . . Alert | -11 -10 -9 ------- Run | Yrd Mat Mat Maximum Alert Level . | . . . Low Security (%) 100 | 100 100 100 Level 1 . | . . . Level 2 . | . . . Level 3 . | . . . Level 4 . | . . . Level 5 . | . . . High Security . | . . . Max Security . | . . . Peak Influence 167 | 20 77 167 Initial 27 | . . 27 Average 37 | 2 31 50 Influence Increases 526 | 20 172 334 Destroy 0b10 Robot/C 300 | 20 140 140 Destroy 0b10 Robot/NC 55 | . 10 45 Destroy Leader 62 | . 22 40 Disable Machine 27 | . . 27 Destroy Structure 82 | . . 82 Influence Decreases 389 | 20 95 274 Entered New Map 50 | . . 50 Time Decay 269 | 20 95 154 Lost Part 70 | . . 70 Squads Dispatched 5 | . 2 3 Investigation 2 | . 2 . Extermination . | . . . Reinforcement 3 | . . 3 Assault . | . . . Garrison . | . . . Intercept . | . . . Searches Triggered . | . . . Construction Impeded 1 | . . 1 Haulers Reinforced . | . . . Active Scanning Responses . | . . . Cargo Convoy Interrupts . | . . . Stealth | -11 -10 -9 --------- Run | Yrd Mat Mat Distress Signals 2 | . . 2 Communications Jammed . | . . . Distress Signals . | . . . Times Spotted 28 | 1 11 16 Peak Tracking Total 5 | . 4 5 Tactical Retreats . | . . . Traps | -11 -10 -9 ------- Run | Yrd Mat Mat Traps Triggered 1 | . 1 . Indirectly . | . . . Trap Hack Attempts . | . . . Triggered . | . . . Disarmed . | . . . Reprogrammed . | . . . Reused . | . . . Traps Extracted . | . . . Installed . | . . . Triggered . | . . . Machines | -11 -10 -9 ---------- Run | Yrd Mat Mat Machines Disabled 3 | . . 3 Max in Single Turn 1 | . . 1 Machines Repaired . | . . . Machines Dismantled . | . . . Machines Sabotaged . | . . . Overloaded Fab Kills . | . . . Hacking | -11 -10 -9 --------- Run | Yrd Mat Mat Machines Accessed 2 | . 2 . Terminals 1 | . 1 . Fabricators . | . . . Repair Stations . | . . . Recycling Units 1 | . 1 . Scanalyzers . | . . . Garrison Access . | . . . Total Hacks 5 | . 5 . Successful 4 | . 4 . Failed 1 | . 1 . Catastrophic . | . . . Database Lockouts . | . . . Manual . | . . . Terminals 3 | . 3 . Fabricators . | . . . Repair Stations . | . . . Recycling Units 2 | . 2 . Scanalyzers . | . . . Garrison Access . | . . . Terminal Hacks 3 | . 3 . Record 3 | . 3 . Fabricator Hacks . | . . . Repair Station Hacks . | . . . Recycling Unit Hacks 1 | . 1 . Report Inventory 1 | . 1 . Scanalyzer . | . . . Garrison Access Hacks . | . . . Unauthorized Hacks . | . . . Terminals . | . . . Fabricators . | . . . Repair Stations . | . . . Recycling Units . | . . . Scanalyzers . | . . . Garrison Access . | . . . Data Cores Recovered . | . . . Used . | . . . Hacking Detections 1 | . 1 . Full Trace Events 1 | . 1 . Feedback Events . | . . . Feedback Blocked . | . . . Robot Schematics Acquired . | . . . Robots Built . | . . . Authchips . | . . . Time . | . . . Total Robot Build Rating . | . . . Part Schematics Acquired . | . . . Parts Built . | . . . Authchips . | . . . Time . | . . . Total Part Build Rating . | . . . Parts Repaired . | . . . Time . | . . . Parts Recycled . | . . . Recycled Matter . | . . . Retrieved Matter . | . . . Retrieved Components . | . . . Parts Scanalyzed . | . . . Part Schematics Acquired . | . . . Parts Damaged . | . . . Bothacking | -11 -10 -9 ------------ Run | Yrd Mat Mat Used RIF Installer . | . . . Robots Hacked . | . . . Non-combat . | . . . Combat . | . . . Robot Hacks Applied . | . . . Relay Couplers Released . | . . . Fabnet Peak Effective % . | . . . Robots Rewired . | . . . Allies Hacked . | . . . Hacks Repelled . | . . . Allies | -11 -10 -9 -------- Run | Yrd Mat Mat Total Allies . | . . . Largest Group . | . . . Highest-Rated Group . | . . . Highest-Rated Ally . | . . . Total Orders . | . . . Ally Attacks . | . . . Total Damage . | . . . Kills . | . . . Allies Corrupted . | . . . Allies Melted . | . . . Intel | -11 -10 -9 ------- Run | Yrd Mat Mat Active Infowar (turns) 547 | . 125 422 Optics 547 | . 125 422 Robot Analysis Total . | . . . Derelict Logs Recovered . | . . . Drone Launches . | . . . Drone Recoveries . | . . . Exploration | -11 -10 -9 ------------- Run | Yrd Mat Mat Turns Passed 819 | 104 293 422 Spaces Moved 451 | 80 145 226 Core 35 | 22 . 13 Treads . | . . . Legs 416 | 58 145 213 Wheels . | . . . Hover . | . . . Flight . | . . . Fastest Speed 50 | 50 120 50 Average Speed 120 | 100 120 128 Slowest Speed 1400 | 120 120 1400 Overloaded Moves . | . . . Propulsion Burnouts . | . . . Robots Hopped . | . . . Potential Cave-ins . | . . . Cave-ins Triggered . | . . . Exploration Rate (%) 20 | 7 25 28 Regions Visited 2 Branch Regions . Pre-discovered Areas . | . . . Known Exits Taken . | . . . Unknown Exits Taken 2 | 1 1 . Scrap Searched . | . . . Spaces Dug . | . . . Terrain Destroyed 81 | . . 81 Melee . | . . . Projectile . | . . . AOE 81 | . . 81 Terrain Rammed . | . . . Walls Destroyed . | . . . Machines Disabled . | . . . Actions | -11 -10 -9 --------- Run | Yrd Mat Mat Total 626 | 101 208 317 Wait 48 | 1 7 40 Move 449 | 79 144 226 Hop . | . . . Pick Up 20 | 8 9 3 Fast Attach 4 | . . 4 Attach 11 | 5 3 3 Detach 2 | . . 2 Swap 6 | . 4 2 Drop 8 | 2 6 . Fire 56 | 1 30 25 Melee . | . . . Ram 3 | . . 3 Kick 19 | 5 5 9 Crush . | . . . Escape Stasis . | . . . Rewire . | . . . Trap . | . . . Miscellaneous . | . . . Route ------- -11/Scrapyard -10/Materials (discovered 2 exits: *Mat / [*Min]) -9/Materials History --------- Turn | Location | Event 2 | -11/Scrapyard | Met Revision 17 71 | -11/Scrapyard | Discovered new exit (range 8) 105 | -11/Scrapyard | Entered Materials 177 | -10/Materials | Discovered new exit (range 8) 306 | -10/Materials | Build established: Mutant 336 | -10/Materials | Discovered new exit (range 10) 398 | -10/Materials | Entered another Materials area 398 | -9/Materials | Evolved 2 slots: Propulsion x2 648 | -9/Materials | Lost 3 parts (1p1n1w) 765 | -9/Materials | Core integrity fell below 50% 789 | -9/Materials | Lost 3 parts (2n1w) 807 | -9/Materials | Core integrity fell below 20% 820 | -9/Materials | Destroyed by Y-45 Defender with Beam Rifle Last Messages --------------- K-01 Serf collects debris. U-05 Engineer lays Concrete. U-05 Engineer builds a Wall. U-05 Engineer lays Concrete. K-01 Serf collects debris. U-05 Engineer builds a Door. R-06 Scavenger collects Huge Storage Unit. U-05 Engineer lays Concrete. K-01 Serf collects debris. U-05 Engineer lays Concrete. R-06 Scavenger collects Ion Engine. M-13 Machinist repairs R-06 Scavenger. K-01 Serf collects debris. R-06 Scavenger collects Huge Storage Unit. K-01 Serf collects debris. U-05 Engineer lays Concrete. Imp. Assault Rifle destroyed. U-05 Engineer lays Concrete. K-01 Serf collects debris. U-05 Engineer builds a Wall. Map ----- +----------------------------------------------------+ | ?????????????????????????????????????????????????? | | ?????????????????????????????????????????????????? | | ?????????????????????????????????????????????????? | | ?????????????????????????????????????????????????? | | ?????????????????????????????????????????????????? | | ?????????????????????????????????????????????????? | | ?????????????????????????????????????????????????? | | ?????????????????????????????????????????????????? | | ?????????????????????????????????????????????????? | | ?????????????????????????????????????????????????? | | ?????????????????????????????????????????????????? | | ?????????????????????????????????????????????????? | | #????????????????????????????????????????????????? | | ##########??????????????????????????????????????? | | #??????????????????????????????????????? | | #??????????????????????????????????????? | | #???###############????????????????????? | | "" """ ##### # #????????????????????? | | """ """ #? # " """ #????????????????????? | | # """ """ #??# "T" #????????????????????? | | # #??## # #????????????????????? | | # #??# # #????????????????????? | | #####+# ##?## [ #?? #????????????????? | | ##########u######+### +????????????????? | | % gg #????????????????? | | r @ #????????????????? | | u Y [%[[ #????????????????? | | ###### # #[##########????????????????? | | # ###### %#k""" """ #???????????????????? | | "T" #?## % """ """ #???????????????????? | | #?# "" """ #???????????????????? | | " #?## #???????????????????? | | " # #??## # ! #???????????????????? | | # ####???# # #???????????????????? | | ##??????# # #???????????????????? | | ##???????# + #???????????????????? | | #????????# #####+#####???????????????????? | | #????????# #???? ???????????????????????? | | #????????# ????? ??????????????????????? | | #?????????##?????????????????????????????? | | #### #######???????????????????????????????????? | | ???# # ! #???????????????????????????????????? | | ???# #! #???????????????????????????????????? | | ???+ + #???????????????????????????????????? | | ???# # #???????????????????????????????????? | | ???# # #???????????????????????????????????? | | ???# # =#???????????????????????????????????? | | ???# # #???????????????????????????????????? | | ???# #######???????????????????????????????????? | | ???# #?????????????????????????????????????????? | +----------------------------------------------------+ Best States ------------- Heat Dissipation 28 Energy Generation 10 Energy Capacity 250 Matter Stores 300 Matter Capacity 300 Sight Range 18 Terrain Scan Density 10 Resistance: KI 20 Resistance: TH 20 Resistance: EX 20 Resistance: EM 20 Resistance: I 20 Resistance: S 20 Resistance: P 20 Weapon Shielding 33 Evasion (%) 55 Offensive Hacking 10 Item Schematics ----------------- None Robot Schematics ------------------ None Fabricated ------------ Nothing Repaired ---------- Nothing Alien Tech Used ----------------- None Achievements -------------- None Challenges ------------ None Game ------ Seed ColdVampiricMeganuke Manual? 0 Play Time 00:15:12 Cumulative 1.0 hours Start 2025.09.19 @ 07:56:52 End 2025.09.19 @ 08:08:04 Sessions 1 Manual Loads 0 Difficulty Adventurer Special Mode None Game No. 2 Rogue 0 Adventurer 2 Explorer 0 Win Type - Total 0 Types 0/0/0/0/0/0/0/0/0/0 Lore% 0 Gallery% 4 Achievement% 5 Wizard Run 0 Options --------- Layout 2 ASCII 0 Keyboard 0 Movement Numpad Keybinds 0 Fullscreen 1 Font 32/SmallcapsGlow Map View 50x44 Zoom Use 0% Tactical HUD 0 Map Filters NONE Filters NONE Steam 1 RUN: da5f5486-a0ba-4496-b904-515202d3f3d5